bitfinex/quotes_ETHUSD_20241123
["timestamp","ask_amount","ask_price","bid_price","bid_amount"]
[1732347628235,0.7042,3325.3,3324.0,0.299]
[1732347629141,0.7042,3325.3,3323.8,0.299]
[1732347629558,0.7042,3325.3,3324.4,0.299]
[1732347629747,0.7042,3325.3,3324.4,1.0565]
[1732347630083,0.7042,3325.3,3324.4,4.0565]
[1732347631041,0.7042,3325.3,3324.4,4.08657508]
[1732347631544,0.7042,3325.3,3324.4,0.299]
[1732347631930,0.7042,3325.3,3324.5,0.03007368]
[1732347632130,0.7042,3326.3,3324.7,0.299]
[1732347632443,0.7042,3326.3,3324.8,0.05050092]
[1732347632444,0.7042,3326.2,3324.8,0.05050092]
[1732347633248,0.7042,3326.2,3324.5,0.299]
[1732347633452,0.7042,3326.2,3324.9,0.05046588]
[1732347633663,0.7042,3326.0,3324.6,0.299]
[1732347633853,0.7042,3326.0,3323.8,0.7575]
[1732347633854,0.7042,3325.8,3324.8,0.299]
[1732347634055,0.7042,3325.8,3323.8,1.9143524]
[1732347634435,0.7042,3325.8,3323.9,0.05081643]
[1732347634723,0.7042,3325.8,3323.9,0.37989696]
[1732347634924,0.7042,3325.8,3323.9,0.34981643]
[1732347639382,0.7042,3325.8,3324.2,1.9140524]
[1732347639524,0.7042,3325.8,3324.3,0.299]
[1732347639725,0.7042,3325.8,3324.3,0.34966159]
[1732347646058,1.902609,3325.7,3324.3,0.34966159]
[1732347646260,0.7042,3325.6,3324.3,0.34966159]
[1732347646447,0.7042,3325.4,3324.3,0.34966159]
[1732347646965,0.7042,3325.4,3324.4,0.299]
[1732347647329,0.7042,3325.4,3324.5,0.05054159]
[1732347649099,0.7042,3325.4,3324.6,0.299]
[1732347649256,0.7042,3325.4,3324.8,0.299]
[1732347649782,0.7042,3325.4,3324.9,0.05038952]
[1732347650482,0.7042,3325.4,3324.6,0.299]
[1732347650642,0.7042,3325.4,3325.0,0.05035447]
[1732347650845,0.7042,3325.4,3324.6,0.299]
[1732347651073,0.7042,3325.4,3325.1,0.05031943]
[1732347651267,0.7042,3325.4,3324.8,0.299]
[1732347651583,0.7042,3325.4,3325.2,0.0502844]
[1732347651761,0.7042,3325.4,3324.8,0.299]
[1732347651956,0.7042,3325.4,3325.3,0.05024936]
[1732347652156,0.7042,3325.4,3324.6,0.299]
[1732347652472,0.7042,3325.4,3324.7,0.05045961]
[1732347653446,0.7042,3325.4,3324.8,0.0487469]
[1732347653681,0.7042,3325.4,3324.6,0.32907277]
[1732347653987,0.7042,3325.4,3324.9,0.04871186]
[1732347654191,0.7042,3325.4,3324.8,0.299]
[1732347654351,0.7042,3325.4,3325.0,0.34767682]
[1732347654553,0.7042,3325.4,3325.0,0.299]
[1732347654877,0.7042,3326.5,3325.1,0.04863384]
[1732347655186,0.7042,3326.3,3325.1,0.04863384]
[1732347655386,0.7356112,3326.2,3325.1,0.04863384]
[1732347655689,0.7042,3326.2,3325.1,0.04863384]
[1732347656684,0.7042,3326.2,3325.6,0.299]
[1732347656894,0.7042,3326.2,3325.6,0.32906435]
[1732347657056,0.7042,3326.2,3325.7,0.04840263]
[1732347657243,0.7042,3326.2,3325.6,0.299]
[1732347657445,0.0314112,3326.1,3325.4,0.299]
[1732347657693,0.7042,3326.0,3325.7,0.04493623]
[1732347657849,0.7042,3325.8,3325.5,0.299]
[1732347658043,0.7042,3325.6,3324.5,1.9143524]
[1732347658262,0.7042,3325.6,3324.3,0.7926]
[1732347658492,0.7042,3325.6,3324.4,0.299]
[1732347659363,0.7042,3325.6,3324.8,0.299]
[1732347660604,0.7042,3325.6,3324.7,0.299]
[1732347660948,0.7042,3325.6,3324.8,0.04527602]
[1732347662281,0.7042,3325.6,3324.8,0.34427602]
[1732347662482,0.74179083,3325.5,3324.8,0.34427602]
[1732347663202,0.74179083,3325.5,3324.8,0.04527602]
[1732347663693,0.74179083,3325.5,3324.3,0.299]
[1732347663694,0.74179083,3325.5,3324.9,0.04532855]
[1732347663902,0.7042,3325.5,3324.5,0.299]
[1732347664116,0.7042,3325.5,3325.0,0.04534298]
[1732347664295,0.7042,3325.5,3324.5,0.299]
[1732347664466,0.7042,3325.5,3325.1,0.04527847]
[1732347664801,0.7042,3325.5,3324.5,0.299]
[1732347665396,0.03759199,3325.4,3324.6,0.04544134]
[1732347665597,0.7042,3325.5,3324.6,0.04544134]
[1732347666499,0.7042,3325.5,3324.7,3.299]
[1732347666692,0.7042,3325.5,3324.7,3.34440628]
[1732347668863,0.7042,3325.5,3324.7,0.34440628]
[1732347669064,0.61067468,3327.0,3324.8,0.299]
[1732347669065,0.7042,3325.3,3324.8,0.299]
[1732347669268,0.7042,3325.3,3324.8,0.34432748]
[1732347670210,0.7042,3326.4,3325.0,0.299]
[1732347670367,0.7042,3326.3,3325.1,0.5497]
[1732347670565,0.7042,3326.3,3325.2,0.299]
[1732347671013,0.03758452,3326.2,3325.3,0.04511674]
[1732347671308,0.7042,3326.3,3325.3,0.04511674]
[1732347671525,0.7042,3326.1,3325.3,0.04511674]
[1732347671704,0.7042,3326.1,3325.1,0.299]
[1732347671885,0.22901992,3327.0,3325.4,0.0450817]
[1732347671886,0.74178455,3326.0,3325.4,0.0450817]
[1732347672079,0.74178455,3326.0,3325.1,0.299]
[1732347672413,0.74178455,3326.0,3324.3,1.05667325]
[1732347672611,0.74178455,3326.0,3324.3,0.299]
[1732347672915,0.74178455,3326.0,3324.4,0.04540839]
[1732347673829,0.74178455,3326.0,3324.5,0.299]
[1732347674111,0.74178455,3326.0,3324.6,0.04533138]
[1732347675149,0.74178455,3326.0,3324.5,0.299]
[1732347675415,0.74178455,3326.0,3324.7,0.34429633]
[1732347675580,0.7042,3326.0,3324.7,3.299]
[1732347675908,0.7042,3326.0,3324.9,0.849]
[1732347676321,0.7042,3326.0,3325.0,0.0451912]
[1732347676523,0.03758626,3325.9,3325.0,0.0451912]
[1732347676719,0.7042,3325.9,3325.0,0.0451912]
[1732347676931,0.7042,3325.9,3324.8,0.299]
[1732347677089,0.74178825,3325.8,3325.1,0.04515616]
[1732347677285,0.74178825,3325.8,3324.8,0.299]
[1732347677782,0.74178825,3325.8,3324.9,0.04522624]
[1732347677986,0.74178825,3325.8,3324.4,0.299]
[1732347678533,0.74178825,3325.8,3324.5,0.04536643]
[1732347679901,0.74178825,3325.8,3324.2,0.299]
[1732347680100,0.74178825,3325.8,3324.6,0.04531448]
[1732347680284,0.74178825,3325.8,3324.2,0.299]
[1732347680490,0.74178825,3325.8,3324.7,0.04527943]
[1732347680788,0.74178825,3325.8,3324.2,0.299]
[1732347681219,0.74178825,3325.8,3324.3,0.04541964]
[1732347684241,0.74178825,3325.8,3323.7,2.2133524]
[1732347684592,0.7042,3325.6,3323.7,2.2133524]
[1732347684791,2.4643524,3325.7,3323.7,2.2133524]
[1732347684792,0.7042,3325.4,3323.8,0.04560367]
[1732347685095,0.35445723,3325.5,3323.8,0.04560367]
[1732347685096,0.74180197,3325.3,3323.8,0.04560367]
[1732347685514,0.74180197,3325.3,3324.1,2.99986]
[1732347685721,0.74180197,3325.3,3322.9,0.28176024]
[1732347685722,0.74180197,3325.3,3324.2,0.299]
[1732347685914,0.74180197,3325.3,3324.2,0.34446342]
[1732347686523,0.74180197,3325.3,3324.3,0.299]
[1732347686717,0.74180197,3325.3,3324.3,0.34442837]
[1732347686995,0.74180197,3325.3,3324.3,0.299]
[1732347687648,0.74180197,3325.3,3323.5,1.9143524]
[1732347687797,0.74180197,3325.3,3323.6,0.34462628]
[1732347688416,0.74180197,3325.3,3323.6,3.34462628]
[1732347689019,0.74180197,3325.3,3323.8,0.299]
[1732347689221,0.74180197,3325.3,3324.0,0.299]
[1732347689527,0.74179978,3325.2,3324.1,0.04381023]
[1732347690093,0.7042,3325.2,3324.1,0.04381023]
[1732347690914,0.7042,3325.2,3324.3,2.2133524]
[1732347691106,0.7042,3325.2,3324.3,5.2133524]
[1732347691305,0.7042,3325.2,3324.4,0.0436823]
[1732347692329,0.7042,3325.2,3324.6,0.299]
[1732347692636,0.7042,3326.0,3324.7,2.2133524]
[1732347692836,0.7042,3326.0,3325.2,0.299]
[1732347693345,0.7042,3326.0,3325.3,0.04344558]
[1732347695039,0.7042,3326.0,3325.5,0.299]
[1732347695244,0.03758229,3326.9,3325.6,0.04147508]
[1732347695447,0.7042,3326.8,3325.6,0.04147508]
[1732347696313,0.7042,3326.8,3325.8,3.299]
[1732347696515,0.7042,3326.8,3325.8,0.299]
[1732347696745,0.7042,3326.8,3325.9,0.04143553]
[1732347698633,0.7042,3327.3,3325.5,1.06217773]
[1732347698834,0.7042,3327.1,3325.6,0.04151747]
[1732347699067,0.7042,3326.9,3325.6,0.04151747]
[1732347699832,0.03757951,3326.8,3325.7,0.55]
[1732347700071,0.03757951,3326.8,3325.8,0.04138588]
[1732347700245,0.7042,3326.7,3325.8,0.04138588]
[1732347700447,0.7042,3326.5,3325.8,0.04138588]
[1732347700634,0.7042,3326.5,3325.5,0.299]
[1732347700832,0.7042,3326.5,3325.6,0.04147468]
[1732347701138,0.7042,3326.5,3325.4,0.299]
[1732347701336,0.7042,3326.5,3325.7,0.04143965]
[1732347701553,0.7042,3326.5,3325.4,0.299]
[1732347701772,0.7042,3326.5,3325.8,0.04140462]
[1732347701946,0.7042,3326.5,3325.5,0.849]
[1732347702151,0.7042,3326.5,3325.9,0.0413696]
[1732347702445,0.7042,3326.5,3325.5,0.849]
[1732347702663,0.7042,3326.5,3325.6,0.04148103]
[1732347703664,0.7042,3326.5,3325.6,0.83138103]
[1732347703981,0.7042,3326.5,3325.7,0.55]
[1732347704140,0.7042,3326.5,3325.7,5.4643524]
[1732347704335,0.7042,3326.5,3325.8,0.04142024]
[1732347704766,0.7042,3326.5,3325.8,3.04142024]
[1732347705295,0.7042,3327.6,3325.8,3.04142024]
[1732347705574,0.7042,3327.5,3325.8,3.04142024]
[1732347705970,0.7042,3327.3,3325.8,3.04142024]
[1732347706175,0.741774,3327.2,3325.8,3.04142024]
[1732347706336,0.7042,3327.2,3325.8,3.04142024]
[1732347706537,0.7042,3327.0,3325.9,0.55]
[1732347706772,0.7042,3327.0,3325.9,0.59138522]
[1732347707638,0.7042,3327.0,3326.0,0.299]
[1732347707970,0.7042,3327.0,3326.1,0.04126444]
[1732347709077,0.74177454,3326.9,3326.3,0.299]
[1732347710154,0.74177454,3326.9,3325.7,0.299]
[1732347710354,0.74177454,3326.9,3326.4,0.04113565]
[1732347710553,0.74177454,3326.9,3325.7,0.299]
[1732347711084,0.74177454,3326.9,3325.8,0.04132202]
[1732347711885,0.7042,3326.9,3325.8,0.04132202]
[1732347712041,0.7042,3327.3,3325.8,0.04132202]
[1732347712237,0.7042,3327.1,3325.8,0.34032202]
[1732347712976,0.7042,3327.1,3325.8,4.13022202]
[1732347714637,0.7042,3327.1,3325.9,0.299]
[1732347714837,0.7042,3326.9,3326.0,0.04126051]
[1732347716541,0.7042,3326.7,3326.0,0.04126051]
[1732347716991,0.7042,3326.7,3325.8,0.299]
[1732347717492,0.7042,3326.7,3325.9,0.04129553]
[1732347720260,0.7042,3326.7,3326.0,0.299]
[1732347720451,0.7042,3326.7,3326.1,0.04120174]
[1732347721551,0.7042,3326.7,3325.8,0.299]
[1732347721745,0.7042,3326.7,3326.2,0.04116673]
[1732347721951,0.7042,3326.7,3325.8,0.299]
[1732347722585,0.7042,3326.7,3325.9,0.0411058]
[1732347726060,0.7042,3326.7,3325.7,0.299]
[1732347726262,0.7042,3326.7,3325.8,0.0410221]
[1732347727064,0.7042,3326.7,3325.6,0.299]
[1732347727263,0.7042,3326.7,3325.7,0.04098793]
[1732347728589,0.7417784,3326.6,3325.7,0.04098793]
[1732347729038,0.7042,3326.6,3325.7,0.04098793]
[1732347738662,0.7042,3326.6,3325.8,0.299]
[1732347739066,0.7042,3326.6,3325.9,0.04089477]
[1732347746169,0.7042,3326.6,3326.0,0.299]
[1732347746370,0.7042,3326.6,3326.1,0.04078487]
[1732347757036,0.7042,3326.6,3326.2,0.299]
[1732347757237,0.7042,3326.9,3326.2,0.299]
[1732347757547,0.7042,3326.9,3326.3,0.04073452]
[1732347758488,0.7042,3326.9,3326.1,0.299]
[1732347758788,0.7042,3326.9,3326.3,0.299]
[1732347758995,0.7042,3326.9,3326.4,0.04072278]
[1732347759763,0.7042,3326.9,3326.0,0.299]
[1732347759964,0.7042,3326.9,3326.1,0.0408278]
[1732347760169,0.7042,3326.9,3326.2,0.299]
[1732347760504,0.7042,3326.9,3326.3,0.04075778]
[1732347761066,0.7042,3326.7,3326.3,0.04075778]
[1732347761595,0.7042,3326.7,3326.0,0.299]
[1732347761814,0.7042,3326.7,3326.1,0.04083127]
[1732347772177,0.7042,3326.7,3326.2,0.299]
[1732347772422,0.7042,3326.7,3326.3,0.04111446]
[1732347773788,0.7042,3326.7,3326.0,0.299]
[1732347774111,0.7042,3326.7,3326.1,0.04106578]
[1732347780562,0.7042,3326.7,3326.3,0.299]
[1732347780944,0.7042,3326.7,3326.4,0.04088022]
[1732347781854,0.7042,3327.0,3326.5,0.299]
[1732347782359,0.7042,3327.0,3326.6,0.04081021]
[1732347784658,0.7042,3327.0,3326.8,0.90673068]
[1732347784826,0.7042,3327.2,3326.9,0.299]
[1732347785156,0.7042,3327.2,3327.0,0.04063915]
[1732347785521,0.7042,3327.2,3326.9,0.299]
[1732347785716,0.7042,3327.2,3327.1,0.04057672]
[1732347785932,0.7042,3327.9,3327.0,0.04061172]
[1732347786139,0.74176807,3327.8,3327.1,0.04057672]
[1732347786737,0.7042,3327.8,3327.1,0.04057672]
[1732347787426,0.7042,3327.8,3326.9,0.299]
[1732347787767,0.7042,3327.8,3327.0,0.04061172]
[1732347788621,5.31,3328.8,3327.0,0.33961172]
[1732347788622,0.7042,3327.6,3327.0,0.33961172]
[1732347788953,0.90673068,3328.1,3327.0,0.33961172]
[1732347788954,0.7042,3327.4,3327.0,0.33961172]
[1732347789534,0.7042,3327.4,3327.0,0.04061172]
[1732347789854,0.7042,3327.4,3326.7,0.299]
[1732347790243,0.7042,3327.4,3326.8,0.04063074]
[1732347790432,0.7042,3327.4,3326.9,0.299]
[1732347790629,0.7042,3327.4,3327.0,0.04056074]
[1732347790817,0.7042,3327.4,3326.9,0.299]
[1732347791045,0.7042,3327.4,3327.0,0.04056074]
[1732347791748,0.7042,3327.4,3326.6,0.299]
[1732347791958,0.7042,3327.4,3327.1,0.04052574]
[1732347792265,0.7042,3327.4,3327.2,0.04049075]
[1732347792666,0.7042,3327.4,3326.6,0.299]
[1732347793165,0.7042,3327.4,3326.7,0.04066574]
[1732347793638,0.7042,3327.4,3326.8,0.299]
[1732347793848,0.7042,3327.4,3326.9,0.04066695]
[1732347794931,0.7042,3327.4,3326.6,0.299]
[1732347795172,0.03757097,3327.3,3327.0,0.04065108]
[1732347795337,0.03757097,3327.3,3326.6,0.299]
[1732347795626,0.03757097,3327.3,3327.1,0.04061608]
[1732347796090,0.03757097,3327.3,3327.2,0.04058108]
[1732347796579,0.03757097,3327.3,3325.2,0.01]
[1732347796580,0.55,3327.1,3326.7,0.299]
[1732347796777,0.7042,3326.9,3326.7,0.299]
[1732347796978,0.7042,3326.9,3326.3,0.00473264]
[1732347797357,0.7042,3326.9,3326.4,0.04084854]
[1732347797677,0.03757737,3326.8,3326.4,0.04084854]
[1732347797846,0.03757737,3326.8,3326.5,0.03943722]
[1732347798043,0.03757737,3326.8,3326.0,0.299]
[1732347798247,0.03757737,3326.8,3326.1,0.03958915]
[1732347802243,0.7042,3326.9,3326.1,0.03958915]
[1732347802468,0.03757738,3326.8,3326.1,0.03958915]
[1732347802674,0.7042,3326.6,3326.1,0.33858915]
[1732347802850,0.03758063,3326.5,3326.1,0.33858915]
[1732347803258,0.7042,3326.6,3326.1,0.33858915]
[1732347803794,0.7042,3326.6,3326.1,0.03958915]
[1732347804167,0.7042,3326.6,3325.8,0.299]
[1732347804347,0.7042,3326.6,3326.2,0.0398174]
[1732347804546,0.7042,3326.6,3325.8,0.299]
[1732347804796,0.7042,3326.6,3326.3,0.03978238]
[1732347804945,0.7042,3326.6,3325.8,0.299]
[1732347805377,0.7042,3326.6,3325.9,0.03992538]
[1732347805682,0.03758058,3326.5,3325.9,0.03992538]
[1732347805997,0.7042,3326.4,3325.9,0.03992538]
[1732347806293,0.7919,3326.2,3326.0,0.03706522]
[1732347806451,0.03758504,3326.1,3326.0,0.03706522]
[1732347806651,0.03758504,3326.1,3325.3,0.299]
[1732347806965,0.7919,3326.0,3325.4,0.03704134]
[1732347807351,0.03758542,3325.9,3325.4,0.03704134]
[1732347807559,0.7919,3326.5,3325.5,1.20573068]
[1732347807772,0.7919,3326.5,3325.5,1.24280823]
[1732347808159,0.03758192,3326.4,3325.5,0.33607755]
[1732347808386,0.7919,3326.5,3325.7,0.299]
[1732347809093,0.7919,3326.3,3325.8,0.03697247]
[1732347809256,0.7919,3326.3,3325.8,0.33597247]
[1732347810360,0.7919,3326.3,3325.8,0.03697247]
[1732347810756,0.7919,3326.3,3325.6,0.299]
[1732347810978,0.7919,3326.3,3325.9,0.03676635]
[1732347811182,0.7919,3326.3,3325.6,0.299]
[1732347811379,1.3419,3326.1,3326.0,0.03673133]
[1732347811591,1.3419,3326.1,3325.6,0.299]
[1732347811592,0.98109,3326.1,3325.6,0.299]
[1732347811794,1.53109,3326.1,3326.0,0.03673133]
[1732347811963,1.3419,3326.1,3325.6,0.299]
[1732347812364,1.3419,3326.1,3325.7,0.03683639]
[1732347812763,1.3419,3326.1,3325.3,0.299]
[1732347812976,0.7919,3326.5,3325.9,0.299]
[1732347813382,0.7919,3326.5,3326.0,0.03673133]
[1732347815374,0.7919,3327.0,3326.0,0.03673133]
[1732347815668,0.55,3326.9,3326.0,0.03673133]
[1732347818705,0.0375781,3326.8,3326.2,0.299]
[1732347818887,0.8172,3327.5,3326.8,0.299]
[1732347819092,0.8172,3327.5,3326.8,1.1269]
[1732347819276,0.8172,3327.5,3326.9,0.03634903]
[1732347824081,0.58756933,3327.4,3327.0,0.03498391]
[1732347824279,0.7942,3327.3,3327.0,0.03498391]
[1732347824502,0.7942,3327.3,3326.4,0.2991]
[1732347824816,0.7942,3327.3,3326.5,0.03515891]
[1732347825685,0.7942,3327.3,3326.0,0.2991]
[1732347825887,0.7942,3327.3,3326.6,0.03512391]
[1732347826074,0.7942,3327.3,3326.0,0.64839924]
[1732347826277,0.7942,3327.3,3326.3,0.2991]
[1732347826517,0.7942,3327.3,3326.4,0.03519392]
[1732347827024,0.7942,3327.3,3326.6,0.2991]
[1732347827380,0.7942,3327.3,3326.7,0.0350889]
[1732347839541,1.3045,3328.1,3326.9,0.2991]
[1732347839711,1.5296994,3328.1,3326.9,0.2991]
[1732347840035,1.5296994,3328.1,3327.0,0.03470092]
[1732347840694,0.55,3327.9,3327.0,0.03470092]
[1732347840997,0.70672663,3327.9,3327.0,0.03470092]
[1732347841238,0.15672663,3327.9,3327.0,0.03470092]
[1732347842418,0.79206427,3327.8,3327.0,0.03470092]
[1732347844221,0.79206427,3327.8,3327.5,0.02144523]
[1732347845863,0.8224,3328.4,3327.9,0.2991]
[1732347846071,0.8224,3328.7,3328.0,0.03436833]
[1732347846355,0.8224,3329.2,3328.0,0.03436833]
[1732347846660,0.8224,3329.2,3328.2,0.2991]
[1732347846956,0.8224,3329.2,3328.3,0.0342634]
[1732347847822,0.03755336,3329.1,3328.3,0.0342634]
[1732347848067,0.8224,3328.9,3328.3,0.0342634]
[1732347848360,0.03755339,3328.8,3328.2,0.2991]
[1732347848557,0.03755339,3328.8,3328.2,0.05608125]
[1732347848859,0.03755339,3328.8,3328.3,0.03414657]
[1732347849025,0.8224,3328.9,3327.6,0.76005528]
[1732347849361,0.8224,3328.9,3327.5,3.02144523]
[1732347849362,0.8224,3328.9,3327.7,0.0343683]
[1732347851647,0.8224,3328.9,3327.8,0.7987]
[1732347851842,0.8224,3328.9,3327.9,0.03429834]
[1732347852751,0.8224,3328.9,3328.0,0.7987]
[1732347853185,0.8224,3328.9,3328.1,0.03421155]
[1732347853381,0.8224,3330.0,3328.2,0.7987]
[1732347853560,0.85994775,3329.9,3328.2,0.2991]
[1732347853743,0.85994775,3329.9,3328.1,3.03421155]
[1732347853744,0.85994775,3329.9,3328.4,0.2991]
[1732347854145,0.85994775,3329.9,3328.5,0.03420205]
[1732347854557,0.85994775,3329.9,3328.7,0.2991]
[1732347854983,0.85994775,3329.9,3328.8,0.03384802]
[1732347855752,0.55,3329.8,3328.8,0.03384802]
[1732347855949,0.8224,3329.7,3328.8,0.03384802]
[1732347856155,0.03754774,3329.6,3328.8,0.03384802]
[1732347856396,0.03754774,3329.6,3328.7,0.2991]
[1732347856397,0.8224,3329.5,3328.7,0.2991]
[1732347856705,0.03754775,3329.4,3328.8,0.03381026]
[1732347856844,0.8224,3329.5,3328.8,0.03381026]
[1732347857049,0.8224,3329.5,3328.7,0.2991]
[1732347857263,0.03754777,3329.4,3328.8,0.03381026]
[1732347857464,0.03754775,3329.4,3328.7,0.2991]
[1732347857691,0.8224,3329.5,3328.8,0.03381026]
[1732347858052,0.8224,3329.5,3328.7,0.2991]
[1732347859898,0.8224,3329.5,3329.4,0.02144523]
[1732347864574,0.01334847,3329.6,3329.4,0.02144523]
[1732347865976,0.05089345,3329.6,3329.0,0.2991]
[1732347866176,0.01334847,3329.6,3329.0,0.2991]
[1732347866490,0.05089348,3329.6,3328.9,0.6142625]
[1732347866692,0.8151,3329.5,3328.1,3.74356696]
[1732347866921,0.8151,3329.5,3328.2,0.03396497]
[1732347867718,0.8151,3329.5,3328.2,0.33306497]
[1732347869590,0.8151,3329.5,3328.4,0.2991]
[1732347870017,0.8151,3329.5,3328.5,0.03395305]
[1732347873829,0.8151,3329.5,3329.1,0.00760738]
[1732347873986,0.03754766,3329.4,3329.1,0.00760738]
[1732347875436,0.8151,3329.5,3329.1,0.00760738]
[1732347875801,0.79918131,3329.5,3329.1,0.00760738]
[1732347876737,0.97097423,3329.5,3329.1,0.00760738]
[1732347876901,0.79918131,3329.5,3329.1,0.00760738]
[1732347877109,0.79918131,3329.5,3329.2,0.03369312]
[1732347882512,0.01334847,3329.6,3329.2,0.03369312]
[1732347884452,0.01334847,3329.6,3329.3,0.7798]
[1732347884953,0.01334847,3329.6,3329.4,0.03360163]
[1732347886120,0.01334847,3329.6,3329.4,0.33270163]
[1732347894853,0.01334847,3329.6,3329.5,1.0789]
[1732347895260,0.01334847,3329.6,3329.5,1.11232456]
[1732347900654,0.01334847,3329.6,3329.5,0.33252456]
[1732347901595,0.01334847,3329.6,3329.5,0.03342456]
[1732347902588,0.61643804,3329.6,3329.5,0.03342456]
[1732347903594,0.7608,3330.2,3329.5,0.03342456]
[1732347903752,0.03753748,3330.1,3329.5,0.03342456]
[1732347904099,0.7987,3330.0,3329.2,0.2991]
[1732347904394,0.03754032,3329.9,3329.3,0.03344899]
[1732347904793,0.7987,3329.7,3329.3,0.03344899]
[1732347904993,0.7987,3329.5,3329.3,0.03344899]
[1732347905198,0.7987,3329.5,3329.1,0.00760738]
[1732347905361,0.7987,3329.5,3329.4,0.03343082]
[1732347905561,0.7987,3329.5,3329.1,0.00760738]
[1732347905993,0.7987,3329.5,3329.2,0.03350072]
[1732347906195,1.70409945,3329.5,3329.2,0.03350072]
[1732347906401,0.7987,3329.3,3329.2,0.03350072]
[1732347906761,0.7987,3329.3,3329.1,0.00760738]
[1732347907202,0.7987,3329.3,3329.2,0.0335566]
[1732347907903,0.7987,3329.3,3329.1,0.00760738]
[1732347908087,0.7987,3329.3,3329.2,0.0335566]
[1732347908399,0.7987,3329.3,3329.1,0.00760738]
[1732347908864,0.7987,3329.3,3329.2,0.0335566]
[1732347909059,0.7987,3329.3,3329.1,0.00760738]
[1732347909259,0.7987,3329.3,3329.2,0.0335566]
[1732347909494,0.7987,3329.3,3329.1,0.00760738]
[1732347909892,0.7987,3329.3,3329.2,0.0335566]
[1732347910194,0.7987,3329.3,3329.1,0.00760738]
[1732347910578,0.7987,3329.3,3329.2,0.0335566]
[1732347910973,0.7987,3329.3,3329.1,0.00760738]
[1732347911190,0.7987,3329.3,3329.2,0.03356563]
[1732347912405,0.7987,3329.2,3329.1,0.00760738]
[1732347913501,0.7987,3329.2,3329.1,0.04120796]
[1732347915778,0.7987,3329.7,3329.1,0.04120796]
[1732347915976,0.17040995,3329.6,3329.1,0.04120796]
[1732347916317,0.17040995,3329.6,3329.3,0.2991]
[1732347916475,0.7987,3330.1,3329.4,0.0334866]
[1732347916674,0.83624403,3330.1,3329.4,0.0334866]
[1732347917477,0.7987,3330.1,3329.4,0.0334866]
[1732347917680,0.17040995,3330.0,3329.4,0.0334866]
[1732347919114,0.01334847,3329.8,3329.4,0.0334866]
[1732347922876,0.8024,3329.7,3329.5,0.03229409]
[1732347923102,0.8024,3329.7,3329.1,0.00760738]
[1732347923287,0.8024,3329.7,3329.2,0.03239894]
[1732347923492,0.01334847,3329.8,3329.2,0.03239894]
[1732347926034,0.18546326,3329.8,3329.2,0.2991]
[1732347926320,1.74534326,3329.7,3329.3,0.03126579]
[1732347926619,1.74534326,3329.7,3329.1,0.00760738]
[1732347927141,1.74534326,3329.7,3329.2,0.03025506]
[1732347927346,1.70779945,3329.7,3329.2,0.03025506]
[1732347927636,0.97451479,3329.7,3329.2,0.32935506]
[1732347927811,0.55,3329.6,3329.2,0.32935506]
[1732347929030,0.8024,3329.7,3329.2,0.32935506]
[1732347929231,0.01334847,3329.8,3329.2,0.32935506]
[1732347932838,0.56334847,3329.8,3329.2,0.32935506]
[1732347933202,0.56334847,3329.8,3329.2,0.2991]
[1732347933542,0.01334847,3329.8,3329.3,0.02935795]
[1732347933752,0.81574847,3329.8,3329.2,0.2991]
[1732347934055,0.81574847,3329.8,3329.3,0.02935795]
[1732347934435,0.81574847,3329.8,3329.2,0.2991]
[1732347934643,0.81574847,3329.8,3329.4,0.029323]
[1732347934962,0.55,3329.7,3329.5,0.02928804]
[1732347935117,0.55,3329.7,3329.2,0.2991]
[1732347935314,0.55,3329.7,3329.3,0.02934676]
[1732347935630,0.55,3329.7,3329.2,0.2991]
[1732347935826,0.55,3329.7,3329.4,0.02931181]
[1732347936156,0.55,3329.7,3329.5,0.029265]
[1732347936344,0.55,3329.7,3329.2,0.2991]
[1732347936532,0.55,3329.7,3329.3,0.0293349]
[1732347936855,0.55,3329.7,3329.2,0.2991]
[1732347937171,0.55,3329.7,3329.3,0.02835824]
[1732347937315,0.55,3329.7,3329.2,0.2991]
[1732347937515,0.55,3329.7,3329.3,0.02835824]
[1732347937729,0.01334847,3329.8,3329.2,0.2991]
[1732347938015,0.01334847,3329.8,3329.3,0.02835964]
[1732347938416,0.01334847,3329.8,3329.2,0.2991]
[1732347938561,0.01334847,3329.8,3329.4,0.02832468]
[1732347938768,0.01334847,3329.8,3329.2,0.2991]
[1732347938961,0.01334847,3329.8,3329.3,0.02835964]
[1732347939127,0.01334847,3329.8,3329.2,0.2991]
[1732347939463,0.01334847,3329.8,3329.3,0.02835964]
[1732347939828,0.01334847,3329.8,3329.2,0.2991]
[1732347940037,0.01334847,3329.8,3329.4,0.02832468]
[1732347940250,0.01334847,3329.8,3329.2,3.2991]
[1732347940455,0.01334847,3329.8,3329.5,0.0282701]
[1732347940967,0.01334847,3329.8,3329.6,0.02823515]
[1732347941124,0.01334847,3329.8,3329.2,0.2991]
[1732347941322,0.01334847,3329.8,3329.3,0.02834]
[1732347941525,0.01334847,3329.8,3329.3,0.2991]
[1732347941763,0.01334847,3329.8,3329.4,0.02830505]
[1732347942163,0.01334847,3329.8,3329.1,3.0]
[1732347942377,0.01334847,3329.8,3329.2,0.32660262]
[1732347942533,0.01334847,3329.8,3329.2,0.02750262]
[1732347942726,0.01334847,3329.8,3329.2,0.2991]
[1732347942955,0.01334847,3329.8,3329.3,0.02746766]
[1732347943158,0.01334847,3329.8,3329.2,0.2991]
[1732347943477,0.01334847,3329.8,3329.3,0.02744879]
[1732347943847,0.01334847,3329.8,3329.2,0.2991]
[1732347944152,0.01334847,3329.8,3329.3,0.02742507]
[1732347944352,0.01334847,3329.8,3329.2,0.2991]
[1732347944561,0.55,3329.7,3329.3,0.02742507]
[1732347945075,0.01334847,3329.8,3329.2,0.2991]
[1732347945366,0.01334847,3329.8,3329.3,0.027402]
[1732347945738,0.01334847,3329.8,3329.1,0.2991]
[1732347946329,0.01334847,3329.8,3329.2,0.02743695]
[1732347948431,0.8009,3329.7,3329.2,0.02743695]
[1732347950840,0.8009,3329.5,3329.2,0.16824375]